Cogmind - Beta 13 *** ADVENTURER MODE // 2024.04.02 @ 23:19:06 Player: Compilatron Result: Destroyed by P-80 Master with Gamma Rifle Performance ------------- Evolutions (8) 4000 Regions Visited (14) 2800 Robots Destroyed (100) 500 Value Destroyed (4128) 4128 Prototype IDs (2) 40 Alien Tech Used (1) 200 Bonus (0) 0 TOTAL SCORE: 11668 Bonus ------- None Cogmind --------- Core Integrity 0/1450 Matter 300/300 Energy 100/100 System Corruption 52% Temperature Cool (0) Movement Core (50) Location -2/Research Parts ------- > --- POWER (2) -------- (None) > --- PROPULSION (8) --- (None) > --- UTILITY (10) ----- (None) > --- WEAPON (4) ------- (None) > --- INVENTORY (5) ---- Centrium Leg Advanced Heat Sink Makeshift Terrain Scan Processor Peak State ------------ > --- POWER ------------ Quantum Reactor Reinforced Quantum Reactor > --- PROPULSION ------- Armored Medium Treads Armored Medium Treads Armored Medium Treads Myomer Leg Biometal Leg Biometal Leg Armored Huge Wheel > --- UTILITY ---------- Advanced Heat Sink Advanced Visual Processing Unit Experimental Optical Array Advanced Sensor Array Advanced Signal Interpreter 0b10 Decoder Chip [Generic] Heavy Armor Plating Hacking Suite Hacking Suite > --- WEAPON ----------- Gamma Rifle KE Penetrator KE Penetrator Enhanced Force Lance > --- INVENTORY -------- Advanced Cryofiber Web Advanced Heat Sink Advanced Heat Sink Makeshift Terrain Scan Processor KE Penetrator [Rating: 140] Favorites ----------- Power Light Antimatter Reactor Engine Improved Ion Engine Power Core Neutrino Core Reactor Light Antimatter Reactor Propulsion VTOL Module Treads Advanced Treads Leg Biometal Leg Wheel Wheel Flight Unit VTOL Module Utility Advanced Visual Processing Unit Device Advanced Heat Sink Storage Large Storage Unit Processor Advanced Visual Processing Unit Hackware Hacking Suite Protection Improved Propulsion Shielding Weapon KE Penetrator Energy Gun Tesla Rifle Energy Cannon HERF Cannon Ballistic Gun KE Penetrator Launcher Grenade Launcher Impact Weapon Mace Piercing Weapon Force Lance Build | -11 -10 -9 -9 -8 -7 -6 -5 -5 -5 -4 -4 -4 -3 -2 ------- Run | Yrd Mat Mat Min Mat Fac Fac Fac Upp Upp Fac Upp Upp Res Res Slots Evolved 16 | . . 2 . 2 2 2 2 . . 2 . . 2 2 Power 1 | . . . . . . . . . . 1 . . . . Propulsion 5 | . . 2 . . 2 . . . . 1 . . . . Utility 8 | . . . . 1 . 2 2 . . . . . 2 1 Weapon 2 | . . . . 1 . . . . . . . . . 1 Parts Attached 138 | 6 4 8 1 11 13 10 3 3 1 9 6 1 18 44 Power 15 | 1 2 . . . 2 1 . . . 1 2 . 2 4 Engine 6 | 1 2 . . . 2 1 . . . . . . . . Core 3 | . . . . . . . . . . 1 1 . 1 . Reactor 6 | . . . . . . . . . . . 1 . 1 4 Propulsion 41 | 2 . 4 . 4 6 2 . 2 . 1 1 . 7 12 Treads 14 | 2 . 4 . 1 . . . . . . 1 . 2 4 Leg 7 | . . . . . . . . . . . . . . 7 Wheel 2 | . . . . 1 . . . . . . . . . 1 Hover . | . . . . . . . . . . . . . . . Flight 18 | . . . . 2 6 2 . 2 . 1 . . 5 . Utility 49 | 1 1 2 . 4 2 6 3 . 1 3 3 1 5 17 Device 24 | . . 1 . . . 4 . . 1 2 2 . 3 11 Storage 4 | 1 1 . . 1 . . . . . . . . . 1 Processor 11 | . . 1 . 3 1 . . . . 1 1 1 1 2 Hackware 3 | . . . . . . . 1 . . . . . 1 1 Protection 7 | . . . . . 1 2 2 . . . . . . 2 Artifact . | . . . . . . . . . . . . . . . Weapon 33 | 2 1 2 1 3 3 1 . 1 . 4 . . 4 11 Energy Gun 8 | . . . . . . . . 1 . 2 . . 2 3 Energy Cannon 1 | . . . . . . . . . . . . . . 1 Ballistic Gun 17 | 2 . 2 . 2 2 1 . . . 1 . . 2 5 Ballistic Cannon . | . . . . . . . . . . . . . . . Launcher 4 | . 1 . 1 1 . . . . . . . . . 1 Special Weapon . | . . . . . . . . . . . . . . . Impact Weapon 1 | . . . . . 1 . . . . . . . . . Slashing Weapon . | . . . . . . . . . . . . . . . Piercing Weapon 2 | . . . . . . . . . . 1 . . . 1 Special Melee Weapon . | . . . . . . . . . . . . . . . Unidentified Prototypes 3 | . . . . . . . . . . . 1 . 1 1 Corrupted Parts 6 | . . . . . . . . . . . . . . 6 System Corruption 36 | . . . . . . . . . . . . . . 36 Parts Lost 76 | . 1 . 4 3 1 . . . . 3 3 1 22 38 Power 9 | . 1 . . 1 . . . . . . 1 . 3 3 Propulsion 28 | . . . 2 1 . . . . . 1 1 1 8 14 Utility 20 | . . . 1 . . . . . . 2 1 . 5 11 Weapon 19 | . . . 1 1 1 . . . . . . . 6 10 Highest Loss Streak 17 | . 1 . 4 3 1 . . . . 3 3 1 13 17 To Critical Strikes 5 | . . . . . . . . . . . . . . 5 Average Slot Usage (%) 80 | . 82 87 93 65 93 100 100 100 100 88 83 82 64 66 Engine 4 | . 14 11 11 2 6 6 5 5 5 5 . . . . Core 1 | . . . . . . . . . . . 4 5 2 . Reactor 2 | . . . . . . . . . . . 4 5 3 4 Treads 11 | . 28 37 40 10 . . . . . . 4 5 6 4 Leg 1 | . . . . . . . . . . . . . . 7 Flight 13 | . . . . . 45 40 35 35 35 30 20 17 5 3 Device 7 | . . 4 9 . . 12 11 11 11 10 14 13 6 8 Storage 3 | . 14 11 11 9 . . . . . . . . . . Processor 11 | . . 1 . 14 15 13 11 11 11 10 14 16 21 14 Hackware 3 | . . . . . . . 5 5 5 5 5 5 7 7 Protection 1 | . . . . . 6 6 11 11 11 9 . . . . Energy Gun 2 | . . . . . . . . 4 5 5 5 5 1 2 Ballistic Gun 7 | . 12 10 9 14 12 13 11 6 5 5 5 5 2 5 Launcher 3 | . 13 11 11 8 4 . . . . . . . . . Piercing Weapon 2 | . . . . . . . . . . 3 5 5 3 1 Naked Turns 60 | . . . . . . . . . . . . . . 60 Heaviest Build 131 | 12 31 34 35 53 23 30 29 30 30 36 47 47 46 131 Greatest Support 111 | 40 40 88 88 44 26 30 30 36 36 36 28 23 79 111 Greatest Overweight (x) 5 | 1 . . . 4 . 1 . . . 1 2 2 4 5 Average Overweight (x) . | . . . . 3 . . . . . . 1 2 . . Largest Inventory Capacity 20 | 8 15 15 15 20 20 5 5 5 5 5 5 5 5 20 Average Capacity 8 | 7 10 15 15 19 5 5 5 5 5 5 5 5 5 8 Most Carried 20 | 6 9 15 15 20 19 5 3 5 5 5 5 5 5 8 Average Carried 6 | 2 2 10 14 15 5 2 1 3 4 4 2 4 4 3 Final Capacity 20 | 8 15 15 15 20 5 5 5 5 5 5 5 5 5 5 Final Carried 20 | 1 9 14 15 20 3 4 1 4 5 5 4 5 5 3 Class Distribution -------------------- 27% | Mutant 24% | Scavenger-Mutant 13% | Hacker-Mutant 10% | Hacker-Scout 5% | Scavenger-Assassin 4% | Skirmisher 4% | Sprinter 3% | Scout Dominant Class ---------------- Mutant | -10/Materials Mutant | -9/Materials Mutant | -9/Mines Skirmisher | -8/Materials Sprinter | -7/Factory Scout | -6/Factory Hacker-Scout | -5/Factory Hacker-Scout | -5/Upper Caves Hacker-Scout | -5/Upper Caves Hacker-Scout | -4/Factory Scavenger-Mutant | -4/Upper Caves Scavenger-Mutant | -4/Upper Caves Hacker-Mutant | -3/Research Hacker-Mutant | -2/Research Resources | -11 -10 -9 -9 -8 -7 -6 -5 -5 -5 -4 -4 -4 -3 -2 ----------- Run | Yrd Mat Mat Min Mat Fac Fac Fac Upp Upp Fac Upp Upp Res Res Matter Collected 3265 | 226 55 310 117 285 457 93 . 312 8 158 99 38 360 747 Remotely . | . . . . . . . . . . . . . . . Salvage Created 4587 | . 59 570 45 478 259 93 . 196 60 338 452 133 465 1439 Parts 263 | . 10 50 2 36 13 4 . 12 6 17 11 6 19 77 Haulers Intercepted 1 | . . . . 1 . . . . . . . . . . Recyclers Shooed 1 | . . . . 1 . . . . . . . . . . Parts Field Recycled . | . . . . . . . . . . . . . . . Retrieved Matter . | . . . . . . . . . . . . . . . Parts Self-Destructed 30 | . . . . . . . . 13 4 . 8 5 . . Prevented 2 | . . . . . . . . . . . 2 . . . Kills | -11 -10 -9 -9 -8 -7 -6 -5 -5 -5 -4 -4 -4 -3 -2 ------- Run | Yrd Mat Mat Min Mat Fac Fac Fac Upp Upp Fac Upp Upp Res Res Combat Hostiles Destroyed 86 | . 3 13 10 16 6 1 . 6 1 3 3 1 7 16 Melee 8 | . . . . . . . . . . . . . 3 5 Guns 45 | . . 6 2 8 4 1 . 6 1 3 3 1 3 7 Cannons 1 | . . . . . . . . . . . . . . 1 AOE 28 | . 3 7 8 8 2 . . . . . . . . . Classes Destroyed 14 | . 3 5 2 2 1 . . . 1 . . . . . Worker 5 | . . 2 . . . . . . . . . . . 3 Builder 4 | . 1 . . 1 . . . . . 1 . . . 1 Tunneler 1 | . 1 . . . . . . . . . . . . . Hauler 1 | . . . . 1 . . . . . . . . . . Mechanic 1 | . . . . 1 . . . . . . . . . . Operator 2 | . . 1 . . . 1 . . . . . . . . Watcher 9 | . . 4 . 2 . . . . . 1 . . . 2 Swarmer 22 | . 3 . . 8 . . . 5 . . 1 . 3 2 Grunt 23 | . . 7 . 6 5 . . . . 2 1 . . 2 Sentry 16 | . . 6 . 2 . 1 . 1 . 1 1 . 3 1 Demolisher 1 | . . . 1 . . . . . . . . . . . Hunter 8 | . . . . . 1 . . . . . . . . 7 Programmer 7 | . . . . . . . . . 1 . . 1 1 4 Decomposer 1 | . . . . . . . . . . . . 1 . . Assembled 9 | . . . 9 . . . . . . . . . . . Best Kill Streak 9 | . 3 5 9 8 3 2 . 3 1 2 2 1 2 6 Combat Bots Only 9 | . 3 3 9 8 3 1 . 3 1 2 2 1 2 6 Max Kills in Single Turn 4 | . 3 2 4 2 1 1 . 1 1 2 2 1 1 1 Gunslinging 1 | . . . . . . . . . . . 1 . . . Exploded 4 | . 3 2 4 2 1 . . . . . . . . . Melee 1 | . . . . . . . . . . . . . 1 1 Uniques/NPCs Destroyed . | . . . . . . . . . . . . . . . Combat | -11 -10 -9 -9 -8 -7 -6 -5 -5 -5 -4 -4 -4 -3 -2 -------- Run | Yrd Mat Mat Min Mat Fac Fac Fac Upp Upp Fac Upp Upp Res Res Hostile Shots Fired 1083 | . 7 35 62 53 37 18 . 37 2 34 22 4 174 598 Missed 369 | . 4 11 9 17 14 12 . 19 1 14 9 1 49 209 Damage Taken 12098 | . 76 257 861 385 313 24 . 259 15 431 209 46 2369 6853 Core 2645 | . 40 41 134 54 68 . . 63 . 52 18 . 712 1463 Absorbed by Shields . | . . . . . . . . . . . . . . . Redirected to Shielding 171 | . . . . . 60 . . 30 9 72 . . . . Ignored by Resistances 3348 | . 23 75 243 115 96 9 . 72 4 116 61 12 645 1877 Regen/Repaired (Parts) 178 | . . . . 161 . . . . . 17 . . . . Core Remaining (%) 83 | 100 84 . 56 90 90 100 . . 93 . . 93 45 . Volleys Fired 266 | . 3 43 9 33 17 12 . 15 2 17 11 3 26 75 Largest 4 | . 2 2 2 3 3 2 . 2 2 2 2 2 2 4 Hottest 216 | . 50 53 56 78 86 56 . 106 106 113 98 98 129 216 Shots Fired 458 | . 4 56 13 65 38 24 . 30 4 34 22 7 36 125 Gun 389 | . 1 40 5 50 34 24 . 30 4 34 22 7 36 102 Cannon 21 | . . . . . . . . . . . . . . 21 Launcher 48 | . 3 16 8 15 4 . . . . . . . . 2 Special . | . . . . . . . . . . . . . . . Kinetic 313 | . 1 40 5 50 34 24 . 24 2 17 11 4 25 76 Thermal 21 | . . . . . . . . 6 2 7 . . 6 . Explosive 46 | . 3 16 8 15 4 . . . . . . . . . Electromagnetic 78 | . . . . . . . . . . 10 11 3 5 49 Robot Hit Streak 22 | . 2 10 3 22 7 10 . 11 9 17 18 19 22 12 Robot Miss Streak 3 | . 1 1 2 2 2 3 . 1 . 1 1 2 2 3 Penetration Max 1 | . . . . 1 . . . . . . 1 . . 1 Secondary Targets 9 | . . . . 1 1 . . 3 . . 1 . 1 2 Max Gunslinging Chain 1 | . . . . 1 1 . . 1 . . 1 . 1 1 Shots Hit Robots 381 | . 2 40 7 54 30 14 . 24 4 29 25 6 38 108 Core Hits 206 | . 5 36 16 36 13 5 . 8 2 13 9 4 15 44 Critical Kills 7 | . . 1 1 . . . . 1 . . 1 1 . 2 Critical Parts Destroyed 2 | . . . . . 1 . . . . . . . 1 . Critical Strikes 16 | . . 1 1 . 1 . . 2 1 2 2 2 1 3 Burn 3 | . . . . . . . . 1 1 1 . . . . Destroy 9 | . . 1 1 . 1 . . 1 . . 1 1 1 2 Corrupt 1 | . . . . . . . . . . 1 . . . . Impale 3 | . . . . . . . . . . . 1 1 . 1 Melee Attacks 51 | . . . . . . 9 . . . 11 6 1 9 15 Impact 9 | . . . . . . 9 . . . . . . . . Slashing . | . . . . . . . . . . . . . . . Piercing 42 | . . . . . . . . . . 11 6 1 9 15 Sneak Attacks 1 | . . . . . . . . . . . . . . 1 Combat Hostiles . | . . . . . . . . . . . . . . . Follow-up Attacks . | . . . . . . . . . . . . . . . Damage Inflicted 10484 | . 218 1114 649 1454 704 262 . 405 96 677 620 195 1015 3075 Guns 6123 | . . 439 48 700 509 262 . 405 96 677 273 90 743 1881 Cannons 403 | . . . . . . . . . . . . . . 403 Explosions 2547 | . 218 675 595 746 195 . . . . . . . . 118 Melee 1392 | . . . . . . . . . . . 347 105 272 668 Ramming 19 | . . . 6 8 . . . . . . . . . 5 Kinetic 4681 | . . 439 48 700 509 262 . 288 38 270 175 81 496 1375 Thermal 471 | . . . . . . . . 117 58 155 . . 141 . Explosive 2429 | . 218 675 595 746 195 . . . . . . . . . Electromagnetic 1492 | . . . . . . . . . . 252 98 9 106 1027 Impact . | . . . . . . . . . . . . . . . Slashing . | . . . . . . . . . . . . . . . Piercing 1392 | . . . . . . . . . . . 347 105 272 668 Highest Corruption 51 | . . . 5 . . . . . . . . 1 8 51 Average Corruption 21 | . . . 5 . . . . . . . . 1 3 37 Corruption Purged . | . . . . . . . . . . . . . . . Corruption Blocked . | . . . . . . . . . . . . . . . Effects 68 | . . . 2 . . . . . . . . 10 1 55 Message Errors 13 | . . . 1 . . . . . . . . 1 . 11 Matter Fused 14 | . . . 1 . . . . . . . . 2 . 11 Heat Flow Errors 7 | . . . . . . . . . . . . 1 . 6 Energy Discharges 6 | . . . . . . . . . . . . 2 . 4 Data Loss (minor) 7 | . . . . . . . . . . . . 2 1 4 Data Loss (major) 4 | . . . . . . . . . . . . 1 . 3 Misfires 4 | . . . . . . . . . . . . 1 . 3 Alerts 3 | . . . . . . . . . . . . . . 3 Misdirections 5 | . . . . . . . . . . . . . . 5 Weapon Failures 5 | . . . . . . . . . . . . . . 5 Overload Shots . | . . . . . . . . . . . . . . . Overflow Damage 375 | . 18 . 38 45 3 . . . . . 38 190 16 27 Projectiles . | . . . . . . . . . . . . . . . Explosions 104 | . 18 . 38 45 3 . . . . . . . . . Melee 271 | . . . . . . . . . . . 38 190 16 27 Knockbacks . | . . . . . . . . . . . . . . . Impact . | . . . . . . . . . . . . . . . Kinetic . | . . . . . . . . . . . . . . . Secondary . | . . . . . . . . . . . . . . . Self-Inflicted Damage 215 | . 11 11 37 24 36 . . . . . . . . 96 Shots 11 | . 1 1 1 1 3 . . . . . . . . 4 Rammed 3 | . . . 1 1 . . . . . . . . . 1 Targets Rammed 3 | . . . 1 1 . . . . . . . . . 1 Kicked . | . . . . . . . . . . . . . . . Crushed . | . . . . . . . . . . . . . . . Highest Temperature 258 | . 10 15 2 22 258 13 . 100 55 74 . 190 59 226 Average Temperature 80 | . 7 5 1 9 103 7 . 40 32 34 . 101 26 41 Received Heat Transfer 1102 | . . 135 100 243 171 . . 27 . 72 30 . 153 171 Effects 3 | . . . . . 3 . . . . . . . . . Interference 3 | . . . . . 3 . . . . . . . . . Siege Activations . | . . . . . . . . . . . . . . . Robots Corrupted 5 | . . . . . . . . . . . . . 1 4 Combat Hostiles 4 | . . . . . . . . . . . . . 1 3 Parts Fried 8 | . . . . . . . . . . . . . . 8 Impact Corruptions . | . . . . . . . . . . . . . . . Robots Melted . | . . . . . . . . . . . . . . . Combat Hostiles . | . . . . . . . . . . . . . . . Parts Melted . | . . . . . . . . . . . . . . . Heat Transferred 888 | . . . . . . . . 259 148 296 . . 185 . Parts Sabotaged . | . . . . . . . . . . . . . . . Parts Stolen . | . . . . . . . . . . . . . . . Parts Stripped . | . . . . . . . . . . . . . . . Power Chain Reactions 1 | . . . . . . . . . . . . . . 1 Alert | -11 -10 -9 -9 -8 -7 -6 -5 -5 -5 -4 -4 -4 -3 -2 ------- Run | Yrd Mat Mat Min Mat Fac Fac Fac Upp Upp Fac Upp Upp Res Res Peak Influence 381 | . 97 312 121 381 331 208 103 . . 168 . . 70 202 Initial 148 | . . . 72 30 148 139 87 . . 95 . . . 26 Average 84 | . 10 118 77 122 199 159 100 . . 47 . . 28 63 Maximum Alert Level 1 | . . 1 . 1 1 1 . . . . . . . 1 Low Security (%) 88 | 100 100 73 100 86 68 89 100 . . 100 . . 100 85 Level 1 11 | . . 26 . 13 31 10 . . . . . . . 14 Level 2 . | . . . . . . . . . . . . . . . Level 3 . | . . . . . . . . . . . . . . . Level 4 . | . . . . . . . . . . . . . . . Level 5 . | . . . . . . . . . . . . . . . High Security . | . . . . . . . . . . . . . . . Max Security . | . . . . . . . . . . . . . . . Squads Dispatched 16 | . . 2 . 3 1 . . . . 4 . . 2 4 Investigation 3 | . . 1 . 1 . . . . . 1 . . . . Extermination 4 | . . . . . . . . . . 1 . . 1 2 Reinforcement 7 | . . 1 . 1 1 . . . . 2 . . 1 1 Assault . | . . . . . . . . . . . . . . . Garrison 2 | . . . . 1 . . . . . . . . . 1 Intercept . | . . . . . . . . . . . . . . . Searches Triggered . | . . . . . . . . . . . . . . . Construction Impeded . | . . . . . . . . . . . . . . . Haulers Reinforced 2 | . . . . . 1 . . . . . . . . 1 Active Scanning Responses . | . . . . . . . . . . . . . . . Cargo Convoy Interrupts . | . . . . . . . . . . . . . . . Stealth | -11 -10 -9 -9 -8 -7 -6 -5 -5 -5 -4 -4 -4 -3 -2 --------- Run | Yrd Mat Mat Min Mat Fac Fac Fac Upp Upp Fac Upp Upp Res Res Distress Signals 11 | . 1 5 . . . . . . . 1 . . . 4 Communications Jammed . | . . . . . . . . . . . . . . . Distress Signals . | . . . . . . . . . . . . . . . Times Spotted 149 | . 3 20 21 21 7 3 . 7 1 13 2 1 15 35 Peak Tracking Total 15 | . 3 4 14 3 3 1 . 4 1 6 2 1 6 15 Tactical Retreats 5 | . . . 1 . . . . 1 . 2 . . 1 . Traps | -11 -10 -9 -9 -8 -7 -6 -5 -5 -5 -4 -4 -4 -3 -2 ------- Run | Yrd Mat Mat Min Mat Fac Fac Fac Upp Upp Fac Upp Upp Res Res Traps Triggered 2 | . 1 1 . . . . . . . . . . . . Indirectly . | . . . . . . . . . . . . . . . Trap Hack Attempts . | . . . . . . . . . . . . . . . Triggered . | . . . . . . . . . . . . . . . Disarmed . | . . . . . . . . . . . . . . . Reprogrammed . | . . . . . . . . . . . . . . . Reused . | . . . . . . . . . . . . . . . Traps Extracted . | . . . . . . . . . . . . . . . Installed . | . . . . . . . . . . . . . . . Triggered 2 | . . . . . . . . . . . . 2 . . Machines | -11 -10 -9 -9 -8 -7 -6 -5 -5 -5 -4 -4 -4 -3 -2 ---------- Run | Yrd Mat Mat Min Mat Fac Fac Fac Upp Upp Fac Upp Upp Res Res Machines Disabled 5 | . . 2 . 1 . . . . . . . . . 2 Max in Single Turn 2 | . . 2 . 1 . . . . . . . . . 1 Garrison Access 5 | . . . . . 2 . . . . 1 . . . 2 Machines Repaired . | . . . . . . . . . . . . . . . Machines Dismantled . | . . . . . . . . . . . . . . . Machines Sabotaged . | . . . . . . . . . . . . . . . Overloaded Fab Kills . | . . . . . . . . . . . . . . . Hacking | -11 -10 -9 -9 -8 -7 -6 -5 -5 -5 -4 -4 -4 -3 -2 --------- Run | Yrd Mat Mat Min Mat Fac Fac Fac Upp Upp Fac Upp Upp Res Res Machines Accessed 36 | . . 4 . 4 5 1 4 2 . 9 1 . 2 4 Terminals 19 | . . 3 . 1 2 1 2 . . 7 . . 2 1 Fabricators 2 | . . . . . . . 1 . . . . . . 1 Repair Stations 2 | . . . . 1 . . . . . 1 . . . . Recycling Units 4 | . . 1 . 1 1 . 1 . . . . . . . Scanalyzers . | . . . . . . . . . . . . . . . Garrison Access 6 | . . . . 1 2 . . . . 1 . . . 2 Total Hacks 72 | . . 7 . 7 8 3 8 5 . 23 1 . 2 8 Successful 43 | . . 5 . 3 4 . 5 5 . 15 1 . 2 3 Failed 29 | . . 2 . 4 4 3 3 . . 8 . . . 5 Catastrophic 5 | . . 1 . 1 . . . . . 1 . . . 2 Database Lockouts . | . . . . . . . . . . . . . . . Manual 28 | . . 5 . 2 3 3 4 . . 10 . . . 1 Terminals 39 | . . 5 . 1 3 3 5 . . 19 . . 2 1 Fabricators 3 | . . . . . . . 1 . . . . . . 2 Repair Stations 6 | . . . . 3 . . . . . 3 . . . . Recycling Units 7 | . . 2 . 1 2 . 2 . . . . . . . Scanalyzers . | . . . . . . . . . . . . . . . Garrison Access 11 | . . . . 2 3 . . . . 1 . . . 5 Terminal Hacks 21 | . . 3 . . . . 2 5 . 8 1 . 2 . Record 7 | . . . . . . . . 4 . 3 . . . . Open Door 2 | . . . . . . . . 1 . . 1 . . . Open DSF 1 | . . . . . . . . . . . . . 1 . Branch Access Points 1 | . . 1 . . . . . . . . . . . . Terminal Index 1 | . . . . . . . 1 . . . . . . . Alert Level 1 | . . . . . . . . . . 1 . . . . Unreport Threat 1 | . . . . . . . . . . 1 . . . . Locate Traps 2 | . . . . . . . . . . 1 . . 1 . Disarm Traps 1 | . . 1 . . . . . . . . . . . . Recall Extermination 1 | . . . . . . . . . . 1 . . . . Recall Reinforcements 1 | . . . . . . . . . . 1 . . . . Hauler Manifests 1 | . . 1 . . . . . . . . . . . . Registered Components 1 | . . . . . . . 1 . . . . . . . Fabricator Hacks 2 | . . . . . . . 1 . . . . . . 1 Build 2 | . . . . . . . 1 . . . . . . 1 Repair Station Hacks 5 | . . . . 2 . . . . . 3 . . . . Scan Component 3 | . . . . 1 . . . . . 2 . . . . Repair 2 | . . . . 1 . . . . . 1 . . . . Recycling Unit Hacks 1 | . . 1 . . . . . . . . . . . . Report Inventory 1 | . . 1 . . . . . . . . . . . . Scanalyzer . | . . . . . . . . . . . . . . . Garrison Access Hacks 5 | . . . . . 2 . . . . 1 . . . 2 Seal Access 5 | . . . . . 2 . . . . 1 . . . 2 Unauthorized Hacks 9 | . . 1 . 1 2 . 2 . . 3 . . . . Terminals 6 | . . . . . 2 . 1 . . 3 . . . . Assimilate 4 | . . . . . 2 . . . . 2 . . . . Operators 2 | . . . . . . . 1 . . 1 . . . . Fabricators . | . . . . . . . . . . . . . . . Repair Stations . | . . . . . . . . . . . . . . . Recycling Units 3 | . . 1 . 1 . . 1 . . . . . . . Reject 3 | . . 1 . 1 . . 1 . . . . . . . Scanalyzers . | . . . . . . . . . . . . . . . Garrison Access . | . . . . . . . . . . . . . . . Data Cores Recovered 1 | . . . . . . 1 . . . . . . . . Used . | . . . . . . . . . . . . . . . Hacking Detections 24 | . . 2 . 3 2 1 3 . . 8 . . 1 4 Full Trace Events 2 | . . . . 1 . . . . . 1 . . . . Feedback Events . | . . . . . . . . . . . . . . . Feedback Blocked . | . . . . . . . . . . . . . . . Robot Schematics Acquired . | . . . . . . . . . . . . . . . Robots Built . | . . . . . . . . . . . . . . . Authchips . | . . . . . . . . . . . . . . . Time . | . . . . . . . . . . . . . . . Total Robot Build Rating . | . . . . . . . . . . . . . . . Part Schematics Acquired . | . . . . . . . . . . . . . . . Parts Built 2 | . . . . . . . . . . . . . . 2 Authchips . | . . . . . . . . . . . . . . . Time 152 | . . . . . . . 106 . . . . . . 46 Total Part Build Rating 18 | . . . . . . . . . . . . . . 18 Parts Repaired 2 | . . . . 1 . . . . . 1 . . . . Time 76 | . . . . 38 . . . . . 38 . . . . Parts Recycled . | . . . . . . . . . . . . . . . Recycled Matter . | . . . . . . . . . . . . . . . Retrieved Matter . | . . . . . . . . . . . . . . . Retrieved Components . | . . . . . . . . . . . . . . . Parts Scanalyzed . | . . . . . . . . . . . . . . . Part Schematics Acquired . | . . . . . . . . . . . . . . . Parts Damaged . | . . . . . . . . . . . . . . . Bothacking | -11 -10 -9 -9 -8 -7 -6 -5 -5 -5 -4 -4 -4 -3 -2 ------------ Run | Yrd Mat Mat Min Mat Fac Fac Fac Upp Upp Fac Upp Upp Res Res Used RIF Installer . | . . . . . . . . . . . . . . . Robots Hacked . | . . . . . . . . . . . . . . . Non-combat . | . . . . . . . . . . . . . . . Combat . | . . . . . . . . . . . . . . . Robot Hacks Applied . | . . . . . . . . . . . . . . . Relay Couplers Released . | . . . . . . . . . . . . . . . Fabnet Peak Effective % . | . . . . . . . . . . . . . . . Robots Rewired . | . . . . . . . . . . . . . . . Allies Hacked . | . . . . . . . . . . . . . . . Hacks Repelled . | . . . . . . . . . . . . . . . Allies | -11 -10 -9 -9 -8 -7 -6 -5 -5 -5 -4 -4 -4 -3 -2 -------- Run | Yrd Mat Mat Min Mat Fac Fac Fac Upp Upp Fac Upp Upp Res Res Total Allies 3 | . . . . . 1 . . . . 2 . . . . Largest Group 2 | . . . . . 1 . . . . 2 . . . . Highest-Rated Group 36 | . . . . . 10 . . . . 36 . . . . Highest-Rated Ally 26 | . . . . . 10 . . . . 26 . . . . Total Orders . | . . . . . . . . . . . . . . . Ally Attacks . | . . . . . . . . . . . . . . . Total Damage . | . . . . . . . . . . . . . . . Kills . | . . . . . . . . . . . . . . . Allies Corrupted . | . . . . . . . . . . . . . . . Allies Melted . | . . . . . . . . . . . . . . . Intel | -11 -10 -9 -9 -8 -7 -6 -5 -5 -5 -4 -4 -4 -3 -2 ------- Run | Yrd Mat Mat Min Mat Fac Fac Fac Upp Upp Fac Upp Upp Res Res Robot Analysis Total . | . . . . . . . . . . . . . . . Derelict Logs Recovered 4 | . . . . . . . . 2 . . 2 . . . Drone Launches . | . . . . . . . . . . . . . . . Drone Recoveries . | . . . . . . . . . . . . . . . Decoded 0b10 Intel 49 | . . . . . . . . . . . . . 17 32 Traps 6 | . . . . . . . . . . . . . 5 1 Emergency Access 7 | . . . . . . . . . . . . . 1 6 Items 25 | . . . . . . . . . . . . . 10 15 Machines 8 | . . . . . . . . . . . . . 1 7 Patrols 2 | . . . . . . . . . . . . . . 2 Guards 1 | . . . . . . . . . . . . . . 1 Exploration | -11 -10 -9 -9 -8 -7 -6 -5 -5 -5 -4 -4 -4 -3 -2 ------------- Run | Yrd Mat Mat Min Mat Fac Fac Fac Upp Upp Fac Upp Upp Res Res Turns Passed 8135 | 70 462 1039 329 680 380 254 76 248 71 654 1032 960 616 1264 Spaces Moved 6598 | 50 241 542 206 312 797 451 298 709 244 820 604 443 361 520 Core 149 | 24 . . . . . . . . . . . . 9 116 Treads 1323 | 26 241 542 206 86 . . . . . . . . 125 97 Legs 161 | . . . . . . . . . . . . . . 161 Wheels 253 | . . . . 226 . . . . . . . . . 27 Hover . | . . . . . . . . . . . . . . . Flight 4712 | . . . . . 797 451 298 709 244 820 604 443 227 119 Fastest Speed 20 | 50 160 145 145 140 20 20 21 21 26 26 27 211 34 39 Average Speed 89 | 114 160 150 145 164 20 21 21 23 26 26 159 212 124 135 Slowest Speed 445 | 160 160 160 145 305 20 100 21 26 26 107 211 214 377 445 Overloaded Moves . | . . . . . . . . . . . . . . . Propulsion Burnouts . | . . . . . . . . . . . . . . . Robots Hopped 12 | . . . . . 4 . 1 2 . 3 . . 2 . Cave-ins Triggered . | . . . . . . . . . . . . . . . Exploration Rate (%) 30 | 3 51 40 37 31 21 12 6 74 27 20 62 44 10 23 Regions Visited 14 Branch Regions 5 Pre-discovered Areas . | . . . . . . . . . . . . . . . Known Exits Taken 11 | . . 1 . 1 1 1 1 1 1 1 1 1 1 . Unknown Exits Taken 3 | 1 1 . 1 . . . . . . . . . . . Scrap Searched 10 | . . . 1 . . . . 3 . . 3 3 . . Spaces Dug 41 | . 3 20 . . . 6 . . . 11 1 . . . Terrain Destroyed 272 | . 14 78 44 102 5 6 . . . 12 2 1 1 7 Melee 18 | . . . . . . 6 . . . 11 1 . . . Projectile 6 | . . . . . . . . . . 1 1 1 1 2 AOE 248 | . 14 78 44 102 5 . . . . . . . . 5 Terrain Rammed . | . . . . . . . . . . . . . . . Walls Destroyed . | . . . . . . . . . . . . . . . Machines Disabled . | . . . . . . . . . . . . . . . Actions | -11 -10 -9 -9 -8 -7 -6 -5 -5 -5 -4 -4 -4 -3 -2 --------- Run | Yrd Mat Mat Min Mat Fac Fac Fac Upp Upp Fac Upp Upp Res Res Total 8289 | 63 314 711 223 419 982 568 310 763 248 1197 637 452 465 937 Wait 1086 | . 51 103 4 42 142 73 8 32 . 332 5 2 47 245 Move 6560 | 49 240 541 205 311 788 450 295 704 243 813 603 442 356 520 Hop 12 | . . . . . 4 . 1 2 . 3 . . 2 . Pick Up 115 | 7 12 13 2 16 8 8 1 5 1 3 5 2 3 29 Fast Attach 28 | 1 . . . 1 . . . . . 2 1 . 14 9 Attach 77 | 5 1 4 . 9 10 3 2 . . 1 6 . 3 33 Detach 7 | . . . . 1 . 1 . . . 1 . . 1 3 Swap 34 | . 3 4 1 1 3 7 1 3 1 6 . 1 1 2 Drop 50 | 1 4 3 1 4 10 5 2 2 1 8 . 1 3 5 Fire 266 | . 3 43 9 33 17 12 . 15 2 17 11 3 26 75 Melee 51 | . . . . . . 9 . . . 11 6 1 9 15 Ram 2 | . . . . 1 . . . . . . . . . 1 Kick . | . . . . . . . . . . . . . . . Crush 1 | . . . 1 . . . . . . . . . . . Escape Stasis . | . . . . . . . . . . . . . . . Rewire . | . . . . . . . . . . . . . . . Trap . | . . . . . . . . . . . . . . . Miscellaneous . | . . . . . . . . . . . . . . . Route ------- -11/Scrapyard -10/Materials (discovered 2 exits: *Mat x2) -9/Materials (discovered 2 exits: *Min x2) -9/Mines -8/Materials -7/Factory (discovered 2 exits: *Fac x2) -6/Factory -5/Factory -5/Upper Caves -5/Upper Caves -4/Factory (discovered 2 exits: Res / *Upp) -4/Upper Caves -4/Upper Caves -3/Research (discovered 2 exits: *Res / Arm) -2/Research (discovered 1 exit: Qua) History --------- Turn | Location | Event 7 | -11/Scrapyard | Discovered new exit (range 15) 71 | -11/Scrapyard | Entered Materials 190 | -10/Materials | Discovered new exit (range 15) 204 | -10/Materials | Met 8R-AWN 302 | -10/Materials | Build established: Mutant 490 | -10/Materials | Discovered new exit (range 15) 533 | -10/Materials | Entered another Materials area 533 | -9/Materials | Evolved 2 slots: Propulsion x2 1267 | -9/Materials | Identified exit to Mines 1572 | -9/Materials | Entered Mines 1579 | -9/Mines | Received a Rocket Launcher from a helpful Derelict 1601 | -9/Mines | Met a Derelict bent on vengeance 1612 | -9/Mines | Discovered new exit (range 8) 1811 | -9/Mines | Assembled infested the area 1816 | -9/Mines | Assisted by a Guerilla fighting off Assembled 1893 | -9/Mines | Destroyed 9 combat bots 1893 | -9/Mines | Lost 4 parts (2n1u1w) 1901 | -9/Mines | Entered Materials 1901 | -8/Materials | Evolved 2 slots: Utility x1, Weapon x1 2107 | -8/Materials | Lost 3 parts (1p1n1w) 2258 | -8/Materials | Repaired Adv. Treads 2488 | -8/Materials | Build established: Skirmisher 2511 | -8/Materials | Discovered new exit (range 16) 2519 | -8/Materials | Garrison activated, responded to threat 2571 | -8/Materials | Destroyed 8 combat bots 2580 | -8/Materials | Identified exit to Factory 2581 | -8/Materials | Entered Factory 2581 | -7/Factory | Evolved 2 slots: Propulsion x2 2738 | -7/Factory | Discovered new exit (range 5) 2739 | -7/Factory | Identified exit to Factory 2869 | -7/Factory | Build established: Sprinter 2914 | -7/Factory | Discovered exit to Factory (range 20) 2961 | -7/Factory | Entered another Factory area 2961 | -6/Factory | Evolved 2 slots: Utility x2 3173 | -6/Factory | Discovered new exit (range 10) 3192 | -6/Factory | Identified exit to Factory 3215 | -6/Factory | Entered another Factory area 3215 | -5/Factory | Evolved 2 slots: Utility x2 3251 | -5/Factory | Discovered new exit (range 11) 3253 | -5/Factory | Identified exit to Upper Caves 3291 | -5/Factory | Entered Upper Caves 3308 | -5/Upper Caves | Attracted the attention of an 0b10 checkpoint 3337 | -5/Upper Caves | Learned Factory terminal intel 3375 | -5/Upper Caves | Learned location of 1 exit from Factory 3410 | -5/Upper Caves | Learned Factory emergency access door positions 3410 | -5/Upper Caves | Learned Extension terminal intel 3497 | -5/Upper Caves | Build established: Hacker-Scout 3521 | -5/Upper Caves | Discovered new exit (range 6) 3522 | -5/Upper Caves | Identified exit to Upper Caves 3539 | -5/Upper Caves | Entered another Upper Caves area 3540 | -5/Upper Caves | Identified exit to Factory 3610 | -5/Upper Caves | Entered Factory 3610 | -4/Factory | Evolved 2 slots: Power x1, Propulsion x1 3611 | -4/Factory | Identified exit to Research 3613 | -4/Factory | Loaded intel: 28 terminal locations 3904 | -4/Factory | Repaired Cesium-ion Thruster 4209 | -4/Factory | Discovered new exit (range 6) 4259 | -4/Factory | Identified exit to Upper Caves 4264 | -4/Factory | Entered Upper Caves 4280 | -4/Upper Caves | Found Alien Artifact 4280 | -4/Upper Caves | Identified Core Expander 4280 | -4/Upper Caves | Installed Core Expander, added new Propulsion slot 4291 | -4/Upper Caves | Lost 3 parts (1n2u) 4323 | -4/Upper Caves | Attracted the attention of an 0b10 checkpoint 4374 | -4/Upper Caves | Lost 3 parts (1p1n1u) 4620 | -4/Upper Caves | Build established: Scavenger-Mutant 5196 | -4/Upper Caves | Discovered new exit (range 4) 5233 | -4/Upper Caves | Identified exit to Upper Caves 5296 | -4/Upper Caves | Entered another Upper Caves area 5435 | -4/Upper Caves | Discovered exit to Research (range 18) 5963 | -4/Upper Caves | Spotted B-86 Titan 6256 | -4/Upper Caves | Entered Research 6256 | -3/Research | Evolved 2 slots: Utility x2 6257 | -3/Research | Identified exit to Armory 6400 | -3/Research | Discovered new exit (range 21) 6500 | -3/Research | Lost 7 parts (1p3n1u2w) 6562 | -3/Research | Build established: Hacker-Mutant 6809 | -3/Research | Core integrity fell below 50% 6815 | -3/Research | Lost 13 parts (2p4n4u3w) 6866 | -3/Research | Identified exit to Research 6872 | -3/Research | Entered another Research area 6872 | -2/Research | Evolved 2 slots: Utility x1, Weapon x1 6873 | -2/Research | Identified exit to Quarantine 6879 | -2/Research | Found Gamma Bomb Array 7169 | -2/Research | Fabricated Rnf. Quantum Reactor (x2) 7216 | -2/Research | Lost 4 parts (1p1n1u1w) 7354 | -2/Research | System corruption reached 10% 7360 | -2/Research | Lost 7 parts (3n2u2w) 7377 | -2/Research | System corruption reached 30% 7469 | -2/Research | Garrison activated, responded to threat 7521 | -2/Research | Found Enh. Force Lance 7804 | -2/Research | Build established: Scavenger-Assassin 8009 | -2/Research | Core integrity fell below 50% 8027 | -2/Research | Lost 17 parts (2p5n6u4w) 8076 | -2/Research | Released all parts (6) 8078 | -2/Research | Core integrity fell below 20% 8105 | -2/Research | Lost 9 parts (4n2u3w) 8136 | -2/Research | Destroyed by P-80 Master with Gamma Rifle Last Messages --------------- 08077_ K-01 Serf collects debris. 08077_ Slug penetrates Wall. 08077_ Slug penetrates P-80 Master. 08077_ Penetrated by Slug. 08079_ K-01 Serf collects debris. 08079_ P-80 Master resets P-80 Master, system corruption cleaned. 08080_ %J1TQK8L5LHF#%FGYXX2I84Q2VBYIAVLX0PQ=D 08080_ Penetrated by Slug. 08080_ Slug penetrates Wall. 08087_ Acquired Centrium Leg. 08094_ K-01 Serf cleans the Recycling Unit. 08097_ System corrupted: Energy discharge (-37). 08098_ K-01 Serf destroyed. 08099_ K-01 Serf collects debris. 08113_ BNPDB38VHLT2B/IN/AC0A6QSVKNKBW:=YW4= 08117_ Slammed into T-07 Excavator. [Achievement: Z1$+NX3F=JRE3_ZNQR] [Achievement: Just Browsing] [Achievement: Achiever] Map ----- +----------------------------------------------------+ | ?????????????????????????????????????????????????? | | ?????????????????????????????????????????????????? | | ?????????????????????????????????????????????????? | | ?????????????????????????????????????????????????? | | ?????????????????????????????????????????????????? | | ?????????????????????????????????????????????????? | | ?????????????????????????????????????????????????? | | ?????????????????????????????????????????????????? | | ?????????????????????????????????????????????????? | | ?????????????????????????????????????????????????? | | ?????????????????????????????????????????????????? | | ?????????????????????????????????????????????????? | | ?????????????????????????????????????????????????? | | ?????????????????????????????????????????????????? | | ?????????????????????????????????????????????????? | | ?????????????????????????????????????????????????? | | ????##???????????????????????????????????????????? | | ????# ??????????????????????????????????????????? | | ????# ???????????????????????????????????????? | | ????# "???????????????????????????????????????? | | ????# ""??????????????????????????????????????? | | ????# R?????????????????????????? #??????????? | | ????# """###################### ##?????????? | | ????# # ????????? | | ????# + t ????????? | | ????# # p @ ????????? | | ????# ! # pp ????????? | | ????# ?#p#########+###########+##???????????? | | ????# ?# #??????????????????????????????????? | | ????# """??# #??????????????????????????????????? | | ????# """??# #??????????????????????????????????? | | ????# ""???# #??????????????????????????????????? | | ????# ? ???# #??????????????????????????????????? | | ????#???????# #??????????????????????????????????? | | ????????????# #??????????????????????????????????? | | ????????#####/########???????????????????????????? | | ????????# #???????????????????????????? | | ????????# #???????????????????????????? | | ????????# """"""" #???????????????????????????? | | ######### """"""" #???????????????????????????? | | # """"""" #???????????????????????????? | | # !#???????????????????????????? | | /% #???????????????????????????? | | # """"""" #???????????????????????????? | | ####### # """"""" ? #???????????????????????????? | | #?????# # """"""????????????????????????????????? | | #?????# # ????????????????????????????????? | | #?????# # * ?????????????????????????????????? | | #?????# #########????????????????????????????????? | | / ???? ????????????????????????????????????????? | +----------------------------------------------------+ Best States ------------- Heat Dissipation 87 Energy Generation 53 Energy Capacity 600 Matter Stores 300 Matter Capacity 300 Sight Range 23 Robot Scan Range 16 Terrain Scan Density 10 Cloak Strength 3 Power Amplification 40 Base Temperature (-) 200 Armor Coverage 600 Resistance: KI 20 Resistance: TH 20 Resistance: EX 20 Resistance: EM 20 Resistance: I 20 Resistance: S 20 Resistance: P 20 Propulsion Shielding 66 Evasion (%) 66 Targeting Accuracy 8 Core Analysis 6 Recoil Reduction 4 Offensive Hacking 30 Defensive Hacking 10 Item Schematics ----------------- None Robot Schematics ------------------ None Fabricated ------------ Rnf. Quantum Reactor | x2 | -2/Research | Preloaded Alien Tech Used ----------------- Core Expander Achievements -------------- Achiever Can't Catch Me Just Browsing Z1$+NX3F=JRE3_ZNQR Challenges ------------ None Game ------ Seed PlatingSpikedLink Manual? 0 Play Time 01:41:58 Cumulative 22.1 hours Start 2024.04.02 @ 21:31:35 End 2024.04.02 @ 23:19:06 Sessions 1 Manual Loads 0 Difficulty Adventurer Special Mode None Game No. 20 Rogue 0 Adventurer 18 Explorer 2 Win Type - Total 0 Types 0/0/0/0/0/0/0/0/0 Lore% 32 Gallery% 25 Achievement% 25 Wizard Run 0 Options --------- Layout 1 ASCII 0 Keyboard 0 Movement Numpad Keybinds 0 Fullscreen 1 Font 24/Smallcaps Map View 50x35 Zoom Use 0% Tactical HUD 1 Map Filters NONE Filters NONE Steam 1 RUN: 7e84b928-09e3-41ef-9524-e086979cdd86